fUSD/lending_fUSD_20251115
["ID","MTS","AMOUNT","RATE_DAILY","PERIOD"]
[394068140,1763242263797,-440.834705,0.00041414,95]
[394068141,1763242263807,-151.0,0.00041414,120]
[394068142,1763242263821,-531.075131,0.00041414,120]
[394068143,1763242263830,-531.075131,0.00041414,120]
[394068144,1763242263839,-531.075131,0.00041414,120]
[394068145,1763242263849,-531.075131,0.00041414,120]
[394068146,1763242263858,-151.0,0.00041414,120]
[394068147,1763242263868,-151.0,0.00041414,120]
[394068148,1763242263877,-151.0,0.00041414,120]
[394068149,1763242263887,-151.0,0.00041414,120]
[394068150,1763242263898,-151.0,0.00041414,120]
[394068151,1763242263907,-151.0,0.00041414,120]
[394068152,1763242263917,-151.0,0.00041414,120]
[394068153,1763242263929,-151.0,0.00041414,120]
[394068154,1763242263939,-200.17065,0.00041414,120]
[394068155,1763242263949,-151.0,0.00041414,120]
[394068156,1763242263958,-200.17065,0.00041414,120]
[394068157,1763242263968,-151.0,0.00041414,120]
[394068158,1763242263978,-187.371341,0.00041414,120]
[394068159,1763242263987,-200.17065,0.00041414,120]
[394068160,1763242263997,-151.0,0.00041414,120]
[394068161,1763242264007,-200.170644,0.00041414,120]
[394068162,1763242264016,-176.990805,0.00041414,120]
[394068163,1763242264026,-151.0,0.00041414,120]
[394068164,1763242264035,-326.765039,0.00041414,120]
[394068165,1763242264045,-326.765039,0.00041414,120]
[394068166,1763242264054,-326.765039,0.00041414,120]
[394068167,1763242264064,-326.765038,0.00041414,120]
[394068168,1763242264074,-396.645407,0.00041414,120]
[394068169,1763242264083,-151.0,0.00041414,120]
[394068170,1763242264093,-396.645407,0.00041414,120]
[394068171,1763242264102,-396.645407,0.00041414,120]
[394068172,1763242264111,-151.0,0.00041414,120]
[394068173,1763242264120,-151.0,0.00041414,120]
[394068174,1763242264129,-151.0,0.00041414,120]
[394068175,1763242264138,-396.645401,0.00041414,120]
[394068176,1763242264148,-151.0,0.00041414,120]
[394068177,1763242264157,-151.0,0.00041414,120]
[394068178,1763242264166,-151.0,0.00041414,120]
[394068179,1763242264176,-151.0,0.00041414,120]
[394068180,1763242264186,-161.798752,0.00041414,120]
[394068181,1763242264196,-246.593694,0.00041414,120]
[394068182,1763242264205,-246.593694,0.00041414,120]
[394068183,1763242264215,-246.593694,0.00041414,120]
[394068184,1763242264225,-151.0,0.00041414,120]
[394068185,1763242264235,-246.593687,0.00041414,120]
[394068186,1763242264246,-187.354228,0.00041414,120]
[394068187,1763242264256,-151.0,0.00041414,120]
[394068188,1763242264265,-151.0,0.00041414,120]
[394068189,1763242264275,-151.0,0.00041414,120]
[394068190,1763242264284,-151.0,0.00041414,120]
[394068191,1763242264294,-151.0,0.00041414,120]
[394068192,1763242264304,-223.859606,0.00041414,120]
[394068193,1763242264314,-223.859606,0.00041414,120]
[394068194,1763242264323,-223.859606,0.00041414,120]
[394068195,1763242264333,-223.859608,0.00041414,120]
[394068196,1763242264343,-151.0,0.00041414,120]
[394068197,1763242264353,-263.873412,0.00041414,120]
[394068198,1763242264363,-263.873412,0.00041414,120]
[394068199,1763242264372,-151.0,0.00041414,120]
[394068200,1763242264382,-263.873412,0.00041414,120]
[394068201,1763242264391,-151.0,0.00041414,120]
[394068202,1763242264401,-151.0,0.00041414,120]
[394068203,1763242264410,-151.0,0.00041414,120]
[394068204,1763242264420,-263.873408,0.00041414,120]
[394068205,1763242264429,-151.0,0.00041414,120]
[394068206,1763242264439,-151.0,0.00041414,120]
[394068207,1763242264449,-220.72302,0.00041414,120]
[394068208,1763242264458,-377.911698,0.00041414,120]
[394068209,1763242264468,-151.0,0.00041414,120]
[394068210,1763242264478,-151.0,0.00041414,120]
[394068211,1763242264487,-220.72302,0.00041414,120]
[394068212,1763242264497,-377.911698,0.00041414,120]
[394068213,1763242264507,-300.0,0.00041417,2]
[394068214,1763242264516,-150.0,0.00041418,13]
[394068215,1763242264526,-150.0,0.00041419,28]
[394068216,1763242264535,-150.0,0.00041419,20]
[394068217,1763242264544,-150.0,0.00041419,45]
[394068218,1763242264553,-300.0,0.00041426,2]
[394068219,1763242264563,-150.0,0.00041428,7]
[394068220,1763242264572,-150.0,0.00041429,15]
[394068221,1763242264582,-150.0,0.00041429,120]
[394068222,1763242264591,-150.0,0.00041429,10]
[394068223,1763242264601,-150.0,0.00041438,60]
[394068224,1763242264610,-511.67591007,0.00041439,60]
[394068225,1763242264619,-555.32802148,0.00041439,60]
[394068226,1763242264629,-666.0,0.00041439,30]
[394068227,1763242264641,-666.0,0.00041439,30]
[394068228,1763242264651,-150.0,0.00041439,2]
[394068229,1763242264661,-150.0,0.00041439,30]
[394068230,1763242264671,-150.0,0.00041439,27]
[394068231,1763242264680,-313842.8899584,0.0004144,2]
[394068232,1763242265097,-312.994165,0.0004075,120]
[394068233,1763242265106,-448997.10492181,0.0004144,2]
[394068234,1763242265121,-10544.71999888,0.0004144,2]
[394068235,1763242265141,-16665.5659469,0.0004144,2]
[394068236,1763242265180,-151.0,0.0004075,120]
[394068237,1763242265196,-5033.348,0.0004144,2]
[394068238,1763242265236,-18546.29663027,0.0004144,2]
[394068239,1763242265280,-220.72302,0.000249,7]
[394068240,1763242265299,-500.0,0.00041369,2]
[394068241,1763242265314,-1913.73527873,0.0004144,2]
[394068242,1763242265334,-2990022.79398111,0.0004144,2]
[394068243,1763242265351,-5975.8481878,0.0004144,2]
[394068244,1763242266631,-1196.99829851,0.00019178,2]
[394068245,1763242266642,-1136.71170149,0.00019178,2]
[394068246,1763242266652,-377.911698,0.000248,7]
[394068247,1763242266661,-312.994165,0.000248,7]
[394068248,1763242266670,-230.1269,0.000248,7]
[394068249,1763242266680,-220.72302,0.000248,7]
[394068250,1763242266689,-151.0,0.000248,7]
[394068251,1763242266698,-74.8604887,0.000248,7]
[394068257,1763243237052,-469.47564929,0.00041452,30]
[394068258,1763243237104,-500.0,0.00041452,120]
[394068259,1763243237154,-500.0,0.00041452,120]
[394068260,1763243237205,-500.0,0.00041452,120]
[394068261,1763243237256,-500.0,0.00041452,120]
[394068262,1763243237308,-397.11694462,0.00041452,120]
[394068263,1763243237359,-577.25498461,0.00041452,60]
[394068264,1763243237422,-500.0,0.00041452,120]
[394068265,1763243237472,-500.0,0.00041452,120]
[394068266,1763243237523,-500.0,0.00041452,120]
[394068267,1763243237816,-500.0,0.00041452,120]
[394068268,1763243237874,-502.77749017,0.00041452,120]
[394068269,1763243237929,-500.0,0.00041452,120]
[394068270,1763243237983,-500.0,0.00041452,120]
[394068271,1763243238035,-500.0,0.00041452,120]
[394068272,1763243238097,-500.0,0.00041452,120]
[394068273,1763243238160,-500.0,0.00041452,120]
[394068274,1763243238212,-500.0,0.00041452,120]
[394068275,1763243238264,-500.0,0.00041452,120]
[394068276,1763243238320,-265.70167899,0.00041452,120]
[394068277,1763243238372,-272.66962209,0.00041452,120]
[394068278,1763243238425,-500.0,0.00041452,120]
[394068279,1763243238479,-500.0,0.00041452,120]
[394068280,1763243238537,-500.0,0.00041452,120]
[394068281,1763243238593,-632.5006516,0.00041452,120]
[394068282,1763243238656,-421.13460999,0.00041452,120]
[394068283,1763243238719,-1012.95,0.00041452,120]
[394068284,1763243238778,-200.0,0.00041452,30]
[394068285,1763243238839,-1012.95,0.00041452,120]
[394068286,1763243238896,-1012.95,0.00041452,120]
[394068287,1763243238950,-300.0,0.00041452,30]
[394068288,1763243239004,-1012.95,0.00041452,120]
[394068289,1763243239057,-1012.95,0.00041452,120]
[394068290,1763243239112,-1012.95,0.00041452,120]
[394068291,1763243239165,-1012.95,0.00041452,120]
[394068292,1763243239217,-1012.95,0.00041452,120]
[394068293,1763243239272,-1012.95,0.00041452,120]
[394068294,1763243239324,-1012.95,0.00041452,120]
[394068295,1763243239377,-1012.95,0.00041452,120]
[394068296,1763243239429,-1012.95,0.00041452,120]
[394068297,1763243239484,-500.0,0.00041452,120]
[394068298,1763243239539,-1012.95,0.00041452,120]
[394068299,1763243239594,-500.0,0.00041452,120]
[394068300,1763243239653,-1012.95,0.00041452,120]
[394068301,1763243239709,-264.80682791,0.00041452,120]
[394068302,1763243239765,-1012.95,0.00041452,120]
[394068303,1763243239821,-1012.95,0.00041452,120]
[394068304,1763243239877,-1012.95,0.00041452,120]
[394068305,1763243239933,-1012.95,0.00041452,120]
[394068306,1763243239992,-1012.95,0.00041452,120]
[394068307,1763243240048,-1012.95,0.00041452,120]
[394068308,1763243240101,-1012.95,0.00041452,120]
[394068309,1763243240153,-1012.95,0.00041452,120]
[394068310,1763243240205,-1012.95,0.00041452,120]
[394068311,1763243240256,-1013.12820333,0.00041452,120]
[394068312,1763243240308,-273.88025277,0.00041452,120]
[394068313,1763243240360,-500.0,0.00041452,120]
[394068314,1763243240412,-500.0,0.00041452,120]
[394068315,1763243240462,-500.0,0.00041452,120]
[394068316,1763243240513,-325.95704519,0.00041452,120]
[394068317,1763243240564,-500.0,0.00041452,120]
[394068318,1763243240617,-500.0,0.00041452,120]
[394068319,1763243240676,-500.0,0.00041452,120]
[394068320,1763243240730,-500.0,0.00041452,120]
[394068321,1763243240780,-471.72089777,0.00041452,120]
[394068322,1763243240831,-500.0,0.00041452,120]
[394068323,1763243240885,-500.0,0.00041452,120]
[394068324,1763243240938,-500.0,0.00041452,120]
[394068325,1763243240990,-452.32362992,0.00041452,30]
[394068326,1763243241041,-196.07389812,0.00041452,120]
[394068327,1763243241091,-500.0,0.00041452,120]
[394068328,1763243241141,-150.01,0.00041452,30]
[394068329,1763243241193,-150.02,0.00041452,30]
[394068330,1763243241246,-348.65581163,0.00041452,60]
[394068331,1763243241296,-172.39768837,0.00041452,120]
[394068332,1763243241345,-500.0,0.00041452,120]
[394068333,1763243241394,-500.0,0.00041452,120]
[394068334,1763243241442,-500.0,0.00041452,120]
[394068335,1763243241490,-557.88892075,0.00041452,120]
[394068336,1763243241537,-171.94829186,0.00041452,60]
[394068337,1763243241585,-500.0,0.00041452,120]
[394068338,1763243241639,-500.0,0.00041452,120]
[394068339,1763243241692,-500.0,0.00041452,120]
[394068340,1763243241744,-500.0,0.00041452,120]
[394068341,1763243241796,-529.92612032,0.00041452,120]
[394068342,1763243241846,-500.0,0.00041452,120]
[394068343,1763243241895,-500.0,0.00041452,120]
[394068344,1763243241955,-500.0,0.00041452,120]
[394068345,1763243242008,-160.39781,0.00041452,60]
[394068346,1763243242058,-154.48526,0.00041452,60]
[394068347,1763243242107,-500.0,0.00041452,120]
[394068348,1763243242156,-160.39781,0.00041452,60]
[394068349,1763243242342,-154.48526,0.00041452,60]
[394068350,1763243242396,-270.02457686,0.00041452,120]
[394068351,1763243242448,-160.39781,0.00041452,60]
[394068352,1763243242498,-154.48526,0.00041452,60]
[394068353,1763243242549,-154.48526,0.00041452,60]
[394068354,1763243242602,-154.48526,0.00041452,60]
[394068355,1763243242658,-505.21,0.00041452,120]
[394068356,1763243242712,-505.21,0.00041452,120]
[394068357,1763243242767,-505.21,0.00041452,120]
[394068358,1763243242820,-406.94158363,0.00041452,120]
[394068359,1763243242874,-505.21,0.00041452,120]
[394068360,1763243242928,-500.0,0.00041452,120]
[394068361,1763243242980,-505.21,0.00041452,120]
[394068362,1763243243033,-500.0,0.00041452,120]
[394068363,1763243243094,-505.21,0.00041452,120]
[394068364,1763243243154,-500.0,0.00041452,120]
[394068365,1763243243213,-505.21,0.00041452,120]
[394068366,1763243243273,-497.18688455,0.00041452,120]
[394068367,1763243243329,-505.21,0.00041452,120]
[394068368,1763243243381,-505.21,0.00041452,120]
[394068369,1763243243433,-505.21,0.00041452,120]
[394068370,1763243243485,-505.21,0.00041452,120]
[394068371,1763243243537,-505.21,0.00041452,120]
[394068372,1763243243590,-400.0,0.00041452,120]
[394068373,1763243243650,-505.21,0.00041452,120]
[394068374,1763243243708,-505.21,0.00041452,120]
[394068375,1763243243765,-505.21,0.00041452,120]
[394068376,1763243243820,-505.21,0.00041452,120]
[394068377,1763243243876,-505.21,0.00041452,120]
[394068378,1763243243931,-505.21,0.00041452,120]
[394068379,1763243243986,-505.21,0.00041452,120]
[394068380,1763243244038,-505.21,0.00041452,120]
[394068381,1763243244091,-505.21,0.00041452,120]
[394068382,1763243244146,-505.21,0.00041452,120]
[394068383,1763243244204,-505.21,0.00041452,120]
[394068384,1763243244263,-505.21,0.00041452,120]
[394068385,1763243244321,-500.0,0.00041452,120]
[394068386,1763243244380,-500.0,0.00041452,120]
[394068387,1763243244435,-500.0,0.00041452,120]
[394068388,1763243244491,-500.0,0.00041452,120]
[394068389,1763243244545,-500.0,0.00041452,120]
[394068390,1763243244606,-500.0,0.00041452,120]
[394068391,1763243244669,-555.53183758,0.00041452,120]
[394068392,1763243244727,-500.0,0.00041452,120]
[394068393,1763243244783,-500.0,0.00041452,120]
[394068394,1763243244837,-500.0,0.00041452,120]
[394068395,1763243244893,-500.0,0.00041452,120]
[394068396,1763243244950,-500.0,0.00041452,120]
[394068397,1763243245005,-340.36823628,0.00041452,120]
[394068398,1763243245057,-500.0,0.00041452,120]
[394068399,1763243245108,-405.6298198,0.00041452,120]
[394068400,1763243245161,-500.0,0.00041452,120]
[394068401,1763243245218,-500.0,0.00041452,120]
[394068402,1763243245270,-500.0,0.00041452,120]
[394068403,1763243245322,-500.0,0.00041452,120]
[394068404,1763243245375,-500.0,0.00041452,120]
[394068405,1763243245426,-500.0,0.00041452,120]
[394068406,1763243245475,-500.0,0.00041452,120]
[394068407,1763243245525,-304.1080371,0.00041452,120]
[394068408,1763243245576,-500.0,0.00041452,120]
[394068409,1763243245631,-500.0,0.00041452,120]
[394068410,1763243245692,-417.18986247,0.00041452,120]
[394068411,1763243245752,-203.06198992,0.00041452,120]
[394068412,1763243245808,-583.25207244,0.00041452,120]
[394068413,1763243245863,-500.0,0.00041452,120]
[394068414,1763243245917,-500.0,0.00041452,120]
[394068415,1763243245969,-211.94914251,0.00041452,120]
[394068416,1763243246021,-500.0,0.00041452,120]
[394068417,1763243246073,-500.0,0.00041452,120]
[394068418,1763243246124,-500.0,0.00041452,120]
[394068419,1763243246175,-500.0,0.00041452,120]
[394068420,1763243246225,-427.02887484,0.00041452,120]
[394068421,1763243246277,-500.0,0.00041452,120]
[394068422,1763243246326,-500.0,0.00041452,120]
[394068423,1763243246376,-500.0,0.00041452,120]
[394068424,1763243246427,-521.31864313,0.00041452,120]
[394068425,1763243246476,-516.23107996,0.00041452,120]
[394068426,1763243246526,-508.40672437,0.00041452,120]
[394068427,1763243246580,-243.68654634,0.00041452,120]
[394068428,1763243246640,-251.7815298,0.00041452,120]
[394068429,1763243246702,-500.0,0.00041452,120]
[394068430,1763243246762,-500.0,0.00041452,120]
[394068431,1763243246819,-500.0,0.00041452,120]
[394068432,1763243246872,-500.0,0.00041452,120]
[394068433,1763243246926,-500.0,0.00041452,120]
[394068434,1763243246978,-384.66976888,0.00041452,120]
[394068435,1763243247028,-500.0,0.00041452,120]
[394068436,1763243247080,-500.0,0.00041452,120]
[394068437,1763243247133,-626.45485492,0.00041452,120]
[394068438,1763243247185,-500.0,0.00041452,120]
[394068439,1763243247240,-359.19017908,0.00041452,120]
[394068440,1763243247297,-500.0,0.00041452,120]
[394068441,1763243247352,-500.0,0.00041452,120]
[394068442,1763243247406,-500.0,0.00041452,120]
[394068443,1763243247463,-519.64814025,0.00041452,120]
[394068444,1763243247515,-500.0,0.00041452,120]
[394068445,1763243247569,-500.0,0.00041452,120]
[394068446,1763243247640,-500.0,0.00041452,120]
[394068447,1763243247698,-515.4753834,0.00041452,120]
[394068448,1763243247754,-500.0,0.00041452,120]
[394068449,1763243247816,-500.0,0.00041452,120]
[394068450,1763243247873,-500.0,0.00041452,120]
[394068451,1763243247927,-500.0,0.00041452,120]
[394068452,1763243248138,-500.0,0.00041452,120]
[394068453,1763243248201,-500.0,0.00041452,120]
[394068454,1763243248253,-250.10347306,0.00041452,120]
[394068455,1763243248306,-500.0,0.00041452,120]
[394068456,1763243248358,-500.0,0.00041452,120]
[394068457,1763243248408,-500.0,0.00041452,120]
[394068458,1763243248457,-538.36320273,0.00041452,120]
[394068459,1763243248508,-500.0,0.00041452,120]
[394068460,1763243248557,-457.21312657,0.00041452,120]
[394068461,1763243248607,-500.0,0.00041452,120]
[394068462,1763243248660,-500.0,0.00041452,120]
[394068463,1763243248713,-500.0,0.00041452,120]
[394068464,1763243248766,-271.22340022,0.00041452,120]
[394068465,1763243248818,-162.5875232,0.00041452,120]
[394068466,1763243248871,-500.0,0.00041452,120]
[394068467,1763243248923,-500.0,0.00041452,120]
[394068468,1763243248974,-500.0,0.00041452,120]
[394068469,1763243249024,-500.0,0.00041452,120]
[394068470,1763243249073,-500.0,0.00041452,120]
[394068471,1763243249127,-500.0,0.00041452,120]
[394068472,1763243249183,-500.0,0.00041452,120]
[394068473,1763243249239,-500.0,0.00041452,120]
[394068474,1763243249291,-500.0,0.00041452,120]
[394068475,1763243249346,-487.07692399,0.00041452,120]
[394068476,1763243249403,-186.97455068,0.00041452,120]
[394068477,1763243249457,-500.0,0.00041452,120]
[394068478,1763243249511,-500.0,0.00041452,120]
[394068479,1763243249563,-500.0,0.00041452,120]
[394068480,1763243249619,-500.0,0.00041452,120]
[394068481,1763243249675,-500.0,0.00041452,120]
[394068482,1763243249730,-500.0,0.00041452,120]
[394068483,1763243249784,-500.0,0.00041452,120]
[394068484,1763243249839,-513.41184325,0.00041452,120]
[394068485,1763243249898,-512.97883809,0.00041452,120]
[394068486,1763243249954,-503.66607646,0.00041452,120]
[394068487,1763243250006,-500.0,0.00041452,120]
[394068488,1763243250059,-500.0,0.00041452,120]
[394068489,1763243250112,-500.0,0.00041452,120]
[394068490,1763243250164,-500.0,0.00041452,120]
[394068491,1763243250218,-984.61,0.00041452,120]
[394068492,1763243250271,-984.61,0.00041452,120]
[394068493,1763243250321,-199.35846605,0.00041452,120]
[394068494,1763243250374,-984.61,0.00041452,120]
[394068495,1763243250432,-984.61,0.00041452,120]
[394068496,1763243250486,-500.0,0.00041452,120]
[394068497,1763243250540,-984.61,0.00041452,120]
[394068498,1763243250593,-336.18826855,0.00041452,120]
[394068499,1763243250655,-984.61,0.00041452,120]
[394068500,1763243250713,-984.61,0.00041452,120]
[394068501,1763243250764,-500.0,0.00041452,120]
[394068502,1763243250819,-984.61,0.00041452,120]
[394068503,1763243250871,-500.0,0.00041452,120]
[394068504,1763243250927,-984.61,0.00041452,120]
[394068505,1763243250992,-500.0,0.00041452,120]
[394068506,1763243251057,-984.61,0.00041452,120]
[394068507,1763243251123,-500.0,0.00041452,120]
[394068508,1763243251183,-415.39200855,0.00041452,120]
[394068509,1763243251253,-984.61,0.00041452,120]
[394068510,1763243251314,-500.0,0.00041452,120]
[394068511,1763243251379,-984.61,0.00041452,120]
[394068512,1763243251438,-249.47795489,0.00041452,120]
[394068513,1763243251500,-984.61,0.00041452,120]
[394068514,1763243251561,-984.61,0.00041452,120]
[394068515,1763243251625,-984.61,0.00041452,120]
[394068516,1763243251691,-984.61,0.00041452,120]
[394068517,1763243251755,-500.0,0.00041452,120]
[394068518,1763243251817,-984.61,0.00041452,120]
[394068519,1763243251880,-280.98279921,0.00041452,120]
[394068520,1763243251937,-500.0,0.00041452,120]
[394068521,1763243251996,-984.61,0.00041452,120]
[394068522,1763243252054,-628.07272029,0.00041452,120]
[394068523,1763243252112,-500.0,0.00041452,120]
[394068524,1763243252169,-500.0,0.00041452,120]
[394068525,1763243252229,-500.0,0.00041452,120]
[394068526,1763243252287,-412.98200253,0.00041452,120]
[394068527,1763243252345,-500.0,0.00041452,120]
[394068528,1763243252401,-500.0,0.00041452,120]
[394068529,1763243252460,-984.61,0.00041452,120]
[394068530,1763243252516,-500.0,0.00041452,120]
[394068531,1763243252574,-984.61,0.00041452,120]
[394068532,1763243252632,-435.17176892,0.00041452,120]
[394068533,1763243252693,-984.61,0.00041452,120]
[394068534,1763243252752,-984.61,0.00041452,120]
[394068535,1763243252813,-984.61,0.00041452,120]
[394068536,1763243252878,-984.67981835,0.00041452,120]
[394068537,1763243252939,-500.0,0.00041452,120]
[394068538,1763243253000,-500.0,0.00041452,120]
[394068539,1763243253060,-500.0,0.00041452,120]
[394068540,1763243253120,-222.35941261,0.00041452,120]
[394068541,1763243253182,-500.0,0.00041452,120]
[394068542,1763243253249,-500.0,0.00041452,120]
[394068543,1763243253309,-500.0,0.00041452,120]
[394068544,1763243253367,-547.87157091,0.00041452,120]
[394068545,1763243253424,-500.0,0.00041452,120]
[394068546,1763243253483,-318.67787878,0.00041452,120]
[394068547,1763243253542,-500.0,0.00041452,120]
[394068548,1763243253600,-500.0,0.00041452,120]
[394068549,1763243253662,-500.0,0.00041452,120]
[394068550,1763243253727,-418.67726687,0.00041452,120]
[394068551,1763243253795,-500.0,0.00041452,120]
[394068552,1763243253859,-500.0,0.00041452,120]
[394068553,1763243253927,-464.39100189,0.00041452,120]
[394068554,1763243253997,-500.0,0.00041452,120]
[394068555,1763243254064,-500.0,0.00041452,120]
[394068556,1763243254131,-500.0,0.00041452,120]
[394068557,1763243254199,-500.0,0.00041452,120]
[394068558,1763243254510,-500.0,0.00041452,120]
[394068559,1763243254569,-526.75221092,0.00041452,120]
[394068560,1763243254627,-500.0,0.00041452,120]
[394068561,1763243254690,-500.0,0.00041452,120]
[394068562,1763243254749,-500.0,0.00041452,120]
[394068563,1763243254808,-565.45874625,0.00041452,120]
[394068564,1763243254865,-413.60314133,0.00041452,120]
[394068565,1763243254923,-500.0,0.00041452,120]
[394068566,1763243254980,-165.53973773,0.00041452,120]
[394068567,1763243255035,-500.0,0.00041452,120]
[394068568,1763243255087,-500.0,0.00041452,120]
[394068569,1763243255140,-500.0,0.00041452,120]
[394068570,1763243255192,-500.0,0.00041452,120]
[394068571,1763243255249,-500.0,0.00041452,120]
[394068572,1763243255301,-206.28185644,0.00041452,120]
[394068573,1763243255350,-500.0,0.00041452,120]
[394068574,1763243255403,-500.0,0.00041452,120]
[394068575,1763243255469,-500.0,0.00041452,120]
[394068576,1763243255534,-562.49474913,0.00041452,120]
[394068577,1763243255589,-500.0,0.00041452,120]
[394068578,1763243255648,-500.0,0.00041452,120]
[394068579,1763243255707,-500.0,0.00041452,120]
[394068580,1763243255764,-500.0,0.00041452,120]
[394068581,1763243255816,-411.29614135,0.00041452,120]
[394068582,1763243255871,-611.13506993,0.00041452,120]
[394068583,1763243255926,-468.83460377,0.00041452,120]
[394068584,1763243255980,-500.0,0.00041452,120]
[394068585,1763243256030,-500.0,0.00041452,120]
[394068586,1763243256080,-500.0,0.00041452,120]
[394068587,1763243256129,-500.0,0.00041452,120]
[394068588,1763243256178,-351.00120089,0.00041452,120]
[394068589,1763243256227,-442.24093276,0.00041452,120]
[394068590,1763243256278,-605.51488184,0.00041452,120]
[394068591,1763243256328,-500.0,0.00041452,120]
[394068592,1763243256377,-500.0,0.00041452,120]
[394068593,1763243256426,-500.0,0.00041452,120]
[394068594,1763243256477,-500.0,0.00041452,120]
[394068595,1763243256527,-260.10365921,0.00041452,120]
[394068596,1763243256578,-500.0,0.00041452,120]
[394068597,1763243256633,-289.52270449,0.00041452,120]
[394068598,1763243256687,-500.0,0.00041452,120]
[394068599,1763243256744,-303.39886961,0.00041452,120]
[394068600,1763243256802,-500.0,0.00041452,120]
[394068601,1763243256861,-500.0,0.00041452,120]
[394068602,1763243256917,-500.0,0.00041452,120]
[394068603,1763243256969,-500.0,0.00041452,120]
[394068604,1763243257021,-500.0,0.00041452,120]
[394068605,1763243257071,-500.0,0.00041452,120]
[394068606,1763243257122,-500.0,0.00041452,120]
[394068607,1763243257172,-230.45650788,0.00041452,120]
[394068608,1763243257222,-500.0,0.00041452,120]
[394068609,1763243257273,-500.0,0.00041452,120]
[394068610,1763243257323,-500.0,0.00041452,120]
[394068611,1763243257372,-500.0,0.00041452,120]
[394068612,1763243257424,-449.71281967,0.00041452,120]
[394068613,1763243257475,-500.0,0.00041452,120]
[394068614,1763243257526,-500.0,0.00041452,120]
[394068615,1763243257575,-500.0,0.00041452,120]
[394068616,1763243257631,-500.0,0.00041452,120]
[394068617,1763243257684,-172.21213029,0.00041452,120]
[394068618,1763243257737,-500.0,0.00041452,120]
[394068619,1763243257790,-500.0,0.00041452,120]
[394068620,1763243257841,-500.0,0.00041452,120]
[394068621,1763243257895,-475.62871887,0.00041452,120]
[394068622,1763243257948,-401.06255411,0.00041452,120]
[394068623,1763243258003,-402.216819,0.00041452,120]
[394068624,1763243258056,-500.0,0.00041452,120]
[394068625,1763243258111,-500.0,0.00041452,120]
[394068626,1763243258166,-500.0,0.00041452,120]
[394068627,1763243258221,-500.0,0.00041452,120]
[394068628,1763243258275,-545.44094832,0.00041452,120]
[394068629,1763243258325,-403.64913899,0.00041452,120]
[394068630,1763243258376,-500.0,0.00041452,120]
[394068631,1763243258430,-500.0,0.00041452,120]
[394068632,1763243258485,-500.0,0.00041452,120]
[394068633,1763243258537,-500.0,0.00041452,120]
[394068634,1763243258593,-500.0,0.00041452,120]
[394068635,1763243258648,-264.78764089,0.00041452,120]
[394068636,1763243258701,-405.74810931,0.00041452,120]
[394068637,1763243258753,-500.0,0.00041452,120]
[394068638,1763243258807,-401.13405478,0.00041452,120]
[394068639,1763243258864,-500.0,0.00041452,120]
[394068640,1763243258918,-500.0,0.00041452,120]
[394068641,1763243258969,-500.0,0.00041452,120]
[394068642,1763243259019,-339.50235691,0.00041452,120]
[394068643,1763243259071,-500.0,0.00041452,120]
[394068644,1763243259123,-500.0,0.00041452,120]